bitfinex-derivatives/quotes_BTCF0:USTF0_20260207
["timestamp","ask_amount","ask_price","bid_price","bid_amount"]
[1770491327959,0.01165899,69616.0,69594.0,0.01149177]
[1770491328261,0.01165899,69614.0,69594.0,0.01149177]
[1770491328459,0.01165899,69614.0,69595.0,0.014381]
[1770491329356,0.01165899,69614.0,69595.0,0.02587277]
[1770491329764,0.01165899,69614.0,69595.0,0.01149177]
[1770491330862,0.01165899,69613.0,69590.0,0.014382]
[1770491331365,0.01165899,69612.0,69590.0,0.014382]
[1770491331869,0.01165899,69612.0,69590.0,0.02587377]
[1770491332671,0.01165899,69612.0,69592.0,0.014382]
[1770491334275,0.01165899,69625.0,69602.0,0.01149177]
[1770491334579,0.01165899,69625.0,69607.0,0.01149177]
[1770491335167,0.01165899,69620.0,69594.0,0.01149177]
[1770491336078,0.01165899,69614.0,69594.0,0.01149177]
[1770491336481,0.01165899,69614.0,69593.0,0.014381]
[1770491336482,0.01165899,69614.0,69598.0,0.02587177]
[1770491336671,0.01165899,69620.0,69601.0,0.01149177]
[1770491339777,0.01165899,69619.0,69601.0,0.01149177]
[1770491339976,0.01165899,69617.0,69601.0,0.01149177]
[1770491340367,0.01165899,69616.0,69601.0,0.01149177]
[1770491340572,0.01165899,69616.0,69594.0,0.01149177]
[1770491341073,0.014372,69639.0,69594.0,0.01149177]
[1770491341074,0.01165899,69614.0,69594.0,0.01149177]
[1770491342384,0.014376,69619.0,69598.0,0.01149177]
[1770491342683,0.01165899,69614.0,69593.0,0.29796628]
[1770491342885,0.014377,69613.0,69593.0,0.28358528]
[1770491343083,0.01165899,69612.0,69593.0,0.28358528]
[1770491343279,0.014378,69609.0,69591.0,0.01149177]
[1770491343484,0.01165899,69608.0,69591.0,0.01149177]
[1770491344285,0.01165899,69608.0,69586.0,0.29978373]
[1770491344483,0.01165899,69598.0,69578.0,0.01149177]
[1770491345484,0.01165899,69598.0,69579.0,0.014384]
[1770491346088,0.01165899,69598.0,69581.0,0.29068463]
[1770491346581,0.01165899,69598.0,69579.0,0.014384]
[1770491347179,0.04571252,69592.0,69574.0,0.28254535]
[1770491347372,0.014378,69611.0,69574.0,0.28254535]
[1770491347373,0.03133052,69591.0,69574.0,0.28254535]
[1770491347573,0.03133052,69591.0,69574.0,0.31329774]
[1770491347779,0.03133052,69591.0,69575.0,0.04513739]
[1770491347986,0.03133052,69599.0,69578.0,0.03075239]
[1770491348480,0.03133052,69599.0,69577.0,0.014385]
[1770491348481,0.03133052,69594.0,69574.0,0.29693035]
[1770491349091,0.03133052,69594.0,69574.0,0.28254535]
[1770491349388,0.03133052,69594.0,69574.0,0.29693035]
[1770491349574,0.03133052,69594.0,69574.0,0.014385]
[1770491349978,0.03133052,69594.0,69574.0,0.04513739]
[1770491350181,0.03133052,69594.0,69575.0,0.03075239]
[1770491350382,0.03133052,69594.0,69578.0,0.03075239]
[1770491351588,0.014378,69612.0,69560.0,0.17212379]
[1770491351589,0.03635251,69592.0,69560.0,0.17212379]
[1770491351782,0.03635251,69588.0,69559.0,0.32995667]
[1770491352292,0.03635251,69576.0,69559.0,0.0367629]
[1770491352478,0.05073851,69573.0,69553.0,0.0367629]
[1770491352682,0.014387,69567.0,69553.0,0.0367629]
[1770491353087,0.014387,69567.0,69546.0,0.0367629]
[1770491353284,0.014388,69559.0,69546.0,0.0367629]
[1770491353589,0.05074051,69559.0,69535.0,0.0367629]
[1770491353986,0.03635251,69559.0,69537.0,0.0367629]
[1770491354388,0.03635251,69557.0,69537.0,0.0367629]
[1770491355487,0.01439,69554.0,69530.0,0.0367629]
[1770491355684,0.014384,69581.0,69530.0,0.0367629]
[1770491355685,0.03635251,69553.0,69530.0,0.0367629]
[1770491355883,0.03635251,69550.0,69530.0,0.0367629]
[1770491356589,0.03635251,69548.0,69523.0,0.0511589]
[1770491356791,0.03635251,69548.0,69524.0,0.0367629]
[1770491357188,0.03635251,69548.0,69526.0,0.0367629]
[1770491357389,0.03635251,69543.0,69526.0,0.0367629]
[1770491357983,0.014392,69542.0,69526.0,0.0367629]
[1770491358190,0.05074451,69542.0,69517.0,0.0367629]
[1770491358590,0.03635251,69539.0,69517.0,0.0367629]
[1770491359394,0.05074551,69538.0,69517.0,0.0367629]
[1770491359586,0.03635251,69537.0,69517.0,0.0367629]
[1770491359791,0.014389,69555.0,69517.0,0.0367629]
[1770491359792,0.014394,69534.0,69517.0,0.0367629]
[1770491359989,0.03635251,69535.0,69517.0,0.0367629]
[1770491361487,0.03635251,69534.0,69517.0,0.0367629]
[1770491362091,0.014394,69533.0,69517.0,0.0367629]
[1770491362287,0.03635251,69532.0,69508.0,0.0367629]
[1770491362695,0.03635251,69532.0,69510.0,0.0367629]
[1770491362996,0.014395,69530.0,69510.0,0.0367629]
[1770491364488,0.05074951,69518.0,69496.0,0.0367629]
[1770491364692,0.05075051,69514.0,69496.0,0.0367629]
[1770491364899,0.03635251,69514.0,69489.0,0.0367629]
[1770491365391,0.03635251,69514.0,69492.0,0.0367629]
[1770491365785,0.014396,69522.0,69497.0,0.014401]
[1770491365990,0.014396,69522.0,69498.0,0.0367629]
[1770491366399,0.03635251,69518.0,69498.0,0.0367629]
[1770491367685,0.086348,69547.0,69490.0,0.0367629]
[1770491367686,0.03635251,69514.0,69490.0,0.0367629]
[1770491368590,0.03635251,69511.0,69490.0,0.0367629]
[1770491368791,0.03635251,69511.0,69484.0,0.014404]
[1770491369297,0.03635251,69506.0,69482.0,0.0367629]
[1770491369501,0.03635251,69503.0,69482.0,0.0367629]
[1770491369693,0.03635251,69501.0,69482.0,0.0367629]
[1770491370496,0.0144,69502.0,69482.0,0.0367629]
[1770491370497,0.05075351,69500.0,69482.0,0.0367629]
[1770491370893,0.03635251,69499.0,69476.0,0.014406]
[1770491371095,0.05075351,69498.0,69476.0,0.0367629]
[1770491371294,0.03635251,69492.0,69469.0,0.0367629]
[1770491371495,0.014399,69508.0,69469.0,0.0367629]
[1770491371496,0.03635251,69490.0,69469.0,0.0367629]
[1770491372190,0.03635251,69490.0,69462.0,0.0367629]
[1770491372396,0.03635251,69486.0,69462.0,0.0367629]
[1770491372594,0.03635251,69484.0,69462.0,0.0367629]
[1770491372898,0.03635251,69482.0,69455.0,0.0367629]
[1770491373093,0.03635251,69482.0,69465.0,0.0002]
[1770491374294,0.03635251,69489.0,69465.0,0.0367629]
[1770491374600,0.05075551,69488.0,69465.0,0.0367629]
[1770491375197,0.03635251,69487.0,69465.0,0.0367629]
[1770491375695,0.03635251,69487.0,69466.0,0.014408]
[1770491375994,0.014402,69492.0,69465.0,0.0511709]
[1770491376191,0.04608715,69491.0,69465.0,0.0511709]
[1770491376394,0.04608715,69491.0,69466.0,0.05063014]
[1770491376592,0.04608715,69491.0,69467.0,0.06503714]
[1770491376893,0.04608715,69491.0,69468.0,0.05063014]
[1770491378694,0.014396,69524.0,69472.0,0.05063014]
[1770491378695,0.04608715,69499.0,69472.0,0.05063014]
[1770491379295,0.06048815,69499.0,69475.0,0.05063014]
[1770491379599,0.04608715,69496.0,69475.0,0.05063014]
[1770491379794,0.04608715,69496.0,69472.0,0.014406]
[1770491379990,0.04608715,69496.0,69468.0,0.05063014]
[1770491380195,0.04608715,69525.0,69484.0,0.014404]
[1770491380396,0.04608715,69500.0,69477.0,0.05063014]
[1770491380595,0.04608715,69500.0,69478.0,0.014405]
[1770491381394,0.04608715,69498.0,69478.0,0.014405]
[1770491381596,0.04608715,69488.0,69466.0,0.014408]
[1770491381796,0.014399,69508.0,69461.0,0.014409]
[1770491381797,0.04608715,69484.0,69461.0,0.014409]
[1770491383198,0.04608715,69484.0,69454.0,0.00582601]
[1770491383199,0.04608715,69481.0,69454.0,0.00582601]
[1770491383403,0.04608715,69473.0,69455.0,0.05063014]
[1770491384196,0.049,69467.0,69455.0,0.05063014]
[1770491384503,0.04608715,69473.0,69457.0,0.0002]
[1770491384903,0.014405,69479.0,69457.0,0.0002]
[1770491385105,0.04608715,69478.0,69457.0,0.0002]
[1770491385403,0.04608715,69486.0,69465.0,0.05063014]
[1770491385600,0.04608715,69486.0,69469.0,0.014407]
[1770491385901,0.04608715,69486.0,69465.0,0.06503814]
[1770491386102,0.04608715,69486.0,69465.0,0.05063014]
[1770491386505,0.06049115,69484.0,69465.0,0.05063014]
[1770491386899,0.04608715,69481.0,69458.0,0.014409]
[1770491387100,0.04608715,69476.0,69455.0,0.01441]
[1770491388112,0.014402,69495.0,69456.0,0.0002]
[1770491388113,0.06049315,69475.0,69456.0,0.0002]
[1770491388699,0.014407,69472.0,69456.0,0.0002]
[1770491389005,0.06049415,69472.0,69456.0,0.0002]
[1770491389204,0.04608715,69471.0,69454.0,0.00582601]
[1770491391613,0.04608715,69469.0,69454.0,0.00582601]
[1770491394011,0.014402,69495.0,69454.0,0.00582601]
[1770491394216,0.04608715,69476.0,69455.0,0.05063014]
[1770491394402,0.04608715,69476.0,69460.0,0.0002]
[1770491394803,0.014404,69484.0,69462.0,0.05063014]
[1770491395312,0.06049115,69482.0,69462.0,0.05063014]
[1770491395809,0.04608715,69482.0,69463.0,0.014408]
[1770491396516,0.04608715,69482.0,69459.0,0.014409]
[1770491396814,0.04608715,69481.0,69456.0,0.01441]
[1770491397210,0.04608715,69481.0,69459.0,0.014409]
[1770491399614,0.04608715,69479.0,69456.0,0.11411222]
[1770491399815,0.04608715,69479.0,69463.0,0.0002]
[1770491400620,0.04608715,69494.0,69471.0,0.05063014]
[1770491400813,0.014402,69493.0,69471.0,0.05063014]
[1770491401009,0.014402,69493.0,69471.0,0.06503714]
[1770491401010,0.04608715,69492.0,69471.0,0.06503714]
[1770491401213,0.014403,69491.0,69471.0,0.05063014]
[1770491401407,0.04608715,69488.0,69463.0,0.11411222]
[1770491401616,0.04608715,69475.0,69453.0,0.11411222]
[1770491401812,0.04608715,69465.0,69454.0,1e-08]
[1770491402017,0.04608715,69474.0,69454.0,1e-08]
[1770491402623,0.04608715,69470.0,69454.0,1e-08]
[1770491402917,0.04608715,69464.0,69444.0,0.014412]
[1770491403114,0.04608715,69450.0,69429.0,0.17212379]
[1770491403316,0.04608715,69445.0,69419.0,0.05063014]
[1770491403517,0.04608715,69445.0,69420.0,0.21645899]
[1770491403720,0.04608715,69445.0,69419.0,0.05063014]
[1770491404419,0.04608715,69445.0,69420.0,0.05063014]
[1770491404614,0.04608715,69445.0,69421.0,0.05063014]
[1770491404815,0.04608715,69453.0,69421.0,0.05063014]
[1770491405216,0.04608715,69453.0,69426.0,0.05063014]
[1770491406024,0.04608715,69453.0,69428.0,0.05831483]
[1770491406624,0.014403,69487.0,69410.0,0.14508437]
[1770491406625,0.06046692,69461.0,69433.0,0.05831483]
[1770491406815,0.06046692,69461.0,69434.0,0.07272883]
[1770491407225,0.06046692,69461.0,69434.0,0.02372883]
[1770491407519,0.06046692,69459.0,69434.0,0.02372883]
[1770491407723,0.07487692,69458.0,69434.0,0.02372883]
[1770491407926,0.07487692,69458.0,69422.0,0.014417]
[1770491407927,0.014411,69450.0,69422.0,0.014417]
[1770491408116,0.06046692,69453.0,69425.0,0.014416]
[1770491408317,0.07487792,69452.0,69426.0,0.05831483]
[1770491408517,0.07487792,69452.0,69431.0,0.014415]
[1770491408518,0.06046692,69452.0,69431.0,0.014415]
[1770491408828,0.06046692,69452.0,69426.0,0.05831483]
[1770491409422,0.06046692,69460.0,69434.0,0.05831483]
[1770491410129,0.014407,69468.0,69439.0,0.05831483]
[1770491410425,0.06046692,69462.0,69439.0,0.05831483]
[1770491410619,0.06046692,69460.0,69447.0,0.0002]
[1770491411522,0.06046692,69460.0,69440.0,0.014413]
[1770491411730,0.086424,69486.0,69431.0,0.014415]
[1770491411731,0.06670927,69454.0,69431.0,0.014415]
[1770491412024,0.06670927,69454.0,69437.0,0.014414]
[1770491412224,0.06670927,69454.0,69434.0,0.06570218]
[1770491413527,0.06670927,69454.0,69434.0,0.08011618]
[1770491413924,0.06670927,69462.0,69438.0,0.08011518]
[1770491414123,0.06670927,69462.0,69438.0,0.06570218]
[1770491414327,0.06670927,69462.0,69438.0,0.08011618]
[1770491414526,0.06670927,69462.0,69441.0,0.014413]
[1770491414726,0.014408,69465.0,69441.0,0.08011518]
[1770491416121,0.014406,69476.0,69452.0,0.06570218]
[1770491417326,0.014406,69476.0,69453.0,0.01441]
[1770491417527,0.014406,69476.0,69454.0,0.06570218]
[1770491418132,0.06670927,69480.0,69455.0,0.01441]
[1770491418330,0.06670927,69480.0,69455.0,0.08011218]
[1770491419234,0.06670927,69480.0,69455.0,0.06570218]
[1770491419530,0.06670927,69488.0,69465.0,0.08011018]
[1770491420523,0.06670927,69503.0,69469.0,0.06570218]
[1770491420724,0.014402,69494.0,69471.0,0.06570218]
[1770491420935,0.014402,69494.0,69472.0,0.014406]
[1770491421126,0.014402,69494.0,69472.0,0.08010818]
[1770491421326,0.014403,69491.0,69472.0,0.06570218]
[1770491422230,0.06670927,69497.0,69476.0,0.06570218]
[1770491423034,0.014401,69500.0,69481.0,0.06570218]
[1770491423225,0.06670927,69505.0,69481.0,0.08010618]
[1770491423226,0.0144,69504.0,69481.0,0.08010618]
[1770491423935,0.06670927,69505.0,69485.0,0.014404]
[1770491424233,0.08110927,69505.0,69485.0,0.06570218]
[1770491425032,0.0144,69505.0,69485.0,0.06570218]
[1770491426025,0.014399,69510.0,69486.0,0.014404]
[1770491426224,0.014399,69510.0,69486.0,0.08010618]
[1770491426425,0.06670927,69512.0,69486.0,0.08010618]
[1770491426638,0.014399,69507.0,69486.0,0.08010618]
[1770491428123,0.06670927,69512.0,69486.0,0.06570218]
[1770491428433,0.014402,69494.0,69474.0,0.06570218]
[1770491428732,0.08111027,69498.0,69483.0,0.001]
[1770491429126,0.08111027,69498.0,69474.0,0.06570218]
[1770491429328,0.08111027,69498.0,69477.0,0.014405]
[1770491429727,0.08111027,69498.0,69477.0,0.08010718]
[1770491430238,0.08111027,69498.0,69486.0,0.001]
[1770491430836,0.014402,69495.0,69486.0,0.001]
[1770491431039,0.014403,69491.0,69477.0,0.06570218]
[1770491431737,0.014402,69495.0,69477.0,0.06570218]
[1770491432330,0.0144,69503.0,69484.0,0.06570218]
[1770491434144,0.014399,69507.0,69486.0,0.06570218]
[1770491435332,0.06670927,69513.0,69486.0,0.06570218]
[1770491436833,0.08398821,69511.0,69486.0,0.06570218]
[1770491437639,0.0144,69503.0,69486.0,0.06570218]
[1770491437930,0.014399,69507.0,69486.0,0.08010518]
[1770491439734,0.014399,69507.0,69486.0,0.08110518]
[1770491441335,0.014399,69507.0,69486.0,0.08010518]
[1770491445449,0.08398821,69506.0,69469.0,0.07637565]
[1770491445647,0.08398821,69499.0,69479.0,0.07637565]
[1770491445842,0.014403,69489.0,69472.0,0.07637565]
[1770491450358,0.014405,69479.0,69459.0,0.07637565]
[1770491450746,0.014406,69476.0,69459.0,0.07637565]
[1770491451757,0.014405,69480.0,69459.0,0.09078465]
[1770491452156,0.014405,69477.0,69459.0,0.07637565]
[1770491453451,0.08398821,69482.0,69459.0,0.07637565]
[1770491454056,0.014407,69469.0,69449.0,0.07637565]
[1770491455265,0.014407,69469.0,69449.0,0.07737565]
[1770491456872,0.014407,69469.0,69449.0,0.07637565]
[1770491457264,0.014408,69464.0,69449.0,0.07637565]
[1770491457767,0.014409,69461.0,69449.0,0.07637565]
[1770491458265,0.014409,69458.0,69438.0,0.07637565]
[1770491458764,0.08398821,69462.0,69438.0,0.07637565]
[1770491458966,0.01441,69457.0,69438.0,0.07637565]
[1770491460368,0.01441,69454.0,69438.0,0.07637565]
[1770491460766,0.01441,69458.0,69438.0,0.07637565]
[1770491461464,0.08398821,69457.0,69438.0,0.07737565]
[1770491461662,0.08398821,69457.0,69438.0,0.001]
[1770491462171,0.08398821,69457.0,69432.0,0.07637565]
[1770491462571,0.014411,69451.0,69432.0,0.07637565]
[1770491464666,0.014409,69460.0,69441.0,0.07637565]
[1770491464868,0.09839621,69464.0,69441.0,0.09078865]
[1770491465275,0.014409,69461.0,69445.0,0.07637565]
[1770491465576,0.09065878,69465.0,69445.0,0.07637565]
[1770491465768,0.09065878,69462.0,69437.0,0.0935226]
[1770491466074,0.09065878,69459.0,69437.0,0.0935226]
[1770491467380,0.01441,69457.0,69437.0,0.0935226]
[1770491467671,0.09065878,69459.0,69439.0,0.0935226]
[1770491467873,0.01441,69458.0,69439.0,0.0935226]
[1770491468971,0.014409,69462.0,69443.0,0.0935226]
[1770491469369,0.014408,69464.0,69443.0,0.0935226]
[1770491470468,0.09065878,69465.0,69443.0,0.0935226]
[1770491470469,0.01441,69457.0,69443.0,0.0935226]
[1770491470778,0.09065878,69454.0,69435.0,0.1079366]
[1770491471176,0.014411,69453.0,69435.0,0.0935226]
[1770491472475,0.014411,69451.0,69435.0,0.0935226]
[1770491472680,0.10728621,69451.0,69435.0,0.0935226]
[1770491472883,0.10728621,69451.0,69435.0,0.0945226]
[1770491473074,0.09287521,69451.0,69435.0,0.001]
[1770491473281,0.014412,69445.0,69435.0,0.001]
[1770491473683,0.014413,69443.0,69428.0,0.09362328]
[1770491473871,0.014413,69443.0,69435.0,0.001]
[1770491474578,0.014413,69441.0,69428.0,0.09362328]
[1770491474778,0.014414,69438.0,69420.0,0.09362328]
[1770491475889,0.10728921,69436.0,69420.0,0.09362328]
[1770491476789,0.10728921,69436.0,69413.0,0.09362328]
[1770491476978,0.10728921,69436.0,69415.0,0.09362328]
[1770491477173,0.09287521,69436.0,69417.0,0.09362328]
[1770491477377,0.014413,69440.0,69417.0,0.09362328]
[1770491478180,0.014412,69445.0,69421.0,0.014417]
[1770491478483,0.014412,69445.0,69424.0,0.09362328]
[1770491478684,0.014412,69445.0,69408.0,0.40551429]
[1770491478685,0.09287521,69456.0,69428.0,0.09362328]
[1770491479479,0.09287521,69456.0,69430.0,0.09362328]
[1770491479880,0.014411,69451.0,69432.0,0.09362328]
[1770491480693,0.014412,69448.0,69432.0,0.09362328]
[1770491481184,0.09287521,69443.0,69422.0,0.014417]
[1770491481378,0.10728821,69442.0,69422.0,0.014417]
[1770491481892,0.10728821,69439.0,69420.0,0.09362328]
[1770491482187,0.09287521,69431.0,69413.0,0.09362328]
[1770491482387,0.09287521,69431.0,69416.0,0.0002]
[1770491483378,0.09287521,69439.0,69416.0,0.09382328]
[1770491483584,0.09287521,69439.0,69416.0,0.09362328]
[1770491484090,0.10728821,69439.0,69418.0,0.09362328]
[1770491484482,0.014414,69436.0,69418.0,0.09362328]
[1770491484982,0.10728921,69436.0,69418.0,0.09362328]
[1770491485386,0.09287521,69436.0,69406.0,0.11431587]
[1770491485683,0.09287521,69416.0,69393.0,0.0002]
[1770491485885,0.014414,69434.0,69389.0,0.09362328]
[1770491485886,0.09287521,69412.0,69389.0,0.09362328]
[1770491486087,0.049,69404.0,69389.0,0.09362328]
[1770491486276,0.049,69404.0,69390.0,0.10804628]
[1770491486480,0.09287521,69412.0,69390.0,0.05904628]
[1770491487290,0.09287521,69433.0,69390.0,0.05904628]
[1770491487490,0.014416,69424.0,69399.0,0.06804659]
[1770491487992,0.014416,69424.0,69401.0,0.0705557]
[1770491488783,0.09287521,69428.0,69404.0,0.08801424]
[1770491489286,0.014416,69427.0,69404.0,0.07359424]
[1770491489682,0.09287521,69436.0,69404.0,0.07359424]
[1770491489886,0.09287521,69436.0,69387.0,0.17232379]
[1770491489887,0.09287521,69436.0,69408.0,0.07604932]
[1770491490490,0.014414,69435.0,69413.0,0.07604932]
[1770491494186,0.014414,69435.0,69415.0,0.1010478]
[1770491495693,0.014415,69432.0,69415.0,0.0866298]
[1770491498397,0.11256173,69444.0,69420.0,0.10116018]
[1770491499488,0.014414,69436.0,69420.0,0.10116018]
[1770491500696,0.014415,69433.0,69420.0,0.10116018]
[1770491501596,0.014415,69433.0,69413.0,0.12083054]
[1770491503299,0.43056725,69443.0,69413.0,0.12083054]
[1770491503300,0.11256173,69435.0,69413.0,0.12083054]
[1770491503891,0.014414,69434.0,69417.0,0.11125208]
[1770491505405,0.014415,69431.0,69417.0,0.11125208]
[1770491505604,0.11256173,69433.0,69410.0,0.11125208]
[1770491505999,0.11256173,69433.0,69412.0,0.11125208]
[1770491507100,0.43056725,69440.0,69418.0,0.11125208]
[1770491507304,0.43056725,69444.0,69427.0,0.11125208]
[1770491507702,0.014412,69446.0,69427.0,0.11125208]
[1770491509001,0.11256173,69449.0,69429.0,0.11125208]
[1770491509202,0.014412,69448.0,69431.0,0.11125208]
[1770491510315,0.014412,69445.0,69431.0,0.11125208]
[1770491511001,0.014413,69442.0,69424.0,0.11125208]
[1770491511207,0.11256173,69444.0,69424.0,0.11125208]
[1770491511403,0.014414,69436.0,69417.0,0.11125208]
[1770491512414,0.014414,69436.0,69418.0,0.014418]
[1770491512706,0.014413,69440.0,69418.0,0.12567008]
[1770491513105,0.11256173,69444.0,69418.0,0.12567008]
[1770491513310,0.11256173,69444.0,69418.0,0.11125208]
[1770491513705,0.014414,69437.0,69418.0,0.11125208]
[1770491516607,0.11256173,69435.0,69403.0,0.11125208]
[1770491516809,0.072058,69450.0,69403.0,0.11125208]
[1770491516810,0.12697673,69429.0,69403.0,0.11125208]
[1770491517010,0.12697673,69429.0,69407.0,0.11125208]
[1770491517220,0.11256173,69443.0,69411.0,0.11125208]
[1770491517518,0.014415,69429.0,69411.0,0.11125208]
[1770491517724,0.014416,69426.0,69411.0,0.11125208]
[1770491518216,0.014417,69424.0,69411.0,0.11125208]
[1770491518808,0.014417,69424.0,69411.0,0.11225208]
[1770491519307,0.014417,69424.0,69411.0,0.001]
[1770491519509,0.014417,69424.0,69405.0,0.11125208]
[1770491520516,0.014417,69421.0,69405.0,0.11125208]
[1770491521716,0.014416,69425.0,69405.0,0.11125208]
[1770491522609,0.014418,69419.0,69405.0,0.11125208]
[1770491523612,0.014418,69416.0,69405.0,0.11125208]
[1770491524318,0.014417,69420.0,69405.0,0.11125208]
[1770491525113,0.014417,69423.0,69405.0,0.11125208]
[1770491525516,0.014416,69424.0,69405.0,0.11125208]
[1770491526119,0.014418,69416.0,69405.0,0.11125208]
[1770491535221,0.014419,69411.0,69396.0,0.13681677]
[1770491536322,0.01442,69406.0,69396.0,0.13681677]
[1770491537520,0.014419,69410.0,69396.0,0.13681677]
[1770491538223,0.01442,69407.0,69396.0,0.13681677]
[1770491539223,0.014419,69411.0,69396.0,0.13681677]
[1770491539424,0.01442,69409.0,69396.0,0.13681677]
[1770491539622,0.014419,69413.0,69396.0,0.13681677]
[1770491540222,0.13693076,69417.0,69396.0,0.13681677]
[1770491540623,0.13693076,69414.0,69396.0,0.13681677]
[1770491540823,0.01442,69407.0,69396.0,0.13681677]
[1770491543330,0.014419,69410.0,69396.0,0.13681677]
[1770491545126,0.01442,69407.0,69396.0,0.13681677]
[1770491545934,0.13693076,69410.0,69396.0,0.13681677]
[1770491546132,0.01442,69409.0,69396.0,0.13681677]
[1770491547630,0.13693076,69404.0,69380.0,0.0002]
[1770491547930,0.15135276,69399.0,69380.0,0.13701677]
[1770491548127,0.014422,69396.0,69380.0,0.13681677]
[1770491548529,0.15135276,69396.0,69380.0,0.13681677]
[1770491548729,0.13693076,69396.0,69374.0,0.13681677]
[1770491549027,0.014423,69395.0,69374.0,0.13681677]
[1770491549226,0.15135376,69395.0,69374.0,0.13681677]
[1770491550423,0.13693076,69391.0,69369.0,0.014428]
[1770491550625,0.15135276,69398.0,69375.0,0.13681677]
[1770491550827,0.014422,69398.0,69377.0,0.13681677]
[1770491551029,0.014421,69404.0,69384.0,0.13681677]
[1770491551526,0.01442,69408.0,69385.0,0.014424]
[1770491551726,0.01442,69408.0,69389.0,0.13681677]
[1770491554034,0.15135076,69408.0,69389.0,0.13681677]
[1770491554336,0.01442,69405.0,69389.0,0.13681677]
[1770491555737,0.15135076,69408.0,69389.0,0.13681677]
[1770491556737,0.01442,69406.0,69389.0,0.13681677]
[1770491557434,0.15660203,69406.0,69389.0,0.13681677]
[1770491558236,0.43056725,69425.0,69389.0,0.13681677]
[1770491558237,0.15660203,69409.0,69389.0,0.13681677]
[1770491558437,0.01442,69407.0,69389.0,0.15124077]
[1770491559732,0.15660003,69415.0,69394.0,0.13745474]
[1770491559938,0.014419,69412.0,69394.0,0.13745474]
[1770491560137,0.014419,69412.0,69394.0,0.03745474]
[1770491560733,0.01442,69409.0,69394.0,0.03745474]
[1770491561535,0.14218203,69412.0,69394.0,0.03745474]
[1770491561938,0.014419,69411.0,69394.0,0.03745474]
[1770491562132,0.14218203,69412.0,69394.0,0.03745474]
[1770491562338,0.57522655,69432.0,69405.0,0.11866612]
[1770491562339,0.43056725,69425.0,69405.0,0.11866612]
[1770491562740,0.14218203,69425.0,69405.0,0.11866612]
[1770491562935,0.014419,69411.0,69395.0,0.12129377]
[1770491563539,0.01442,69408.0,69395.0,0.12129377]
[1770491563740,0.01442,69405.0,69388.0,0.12143638]
[1770491565641,0.15660203,69405.0,69388.0,0.12143638]
[1770491568248,0.14218203,69405.0,69388.0,0.13586038]
[1770491570751,0.14218203,69412.0,69390.0,0.13109013]
[1770491571244,0.14218203,69421.0,69397.0,0.13109013]
[1770491571443,0.14218203,69421.0,69384.0,0.014425]
[1770491571444,0.14218203,69421.0,69406.0,0.14551013]
[1770491571646,0.14218203,69427.0,69406.0,0.14551013]
[1770491571840,0.014417,69422.0,69406.0,0.13109013]
[1770491572252,0.15659803,69425.0,69406.0,0.14551013]
[1770491574851,0.014417,69423.0,69406.0,0.13109013]
[1770491575054,0.14218203,69420.0,69400.0,0.13745474]
[1770491575444,0.14218203,69420.0,69401.0,0.014421]
[1770491575646,0.14218203,69426.0,69406.0,0.13745474]
[1770491575853,0.14218203,69426.0,69409.0,0.014419]
[1770491576150,0.14218203,69426.0,69409.0,0.15187374]
[1770491576342,0.014415,69431.0,69409.0,0.15187374]
[1770491576544,0.014415,69431.0,69412.0,0.15187374]
[1770491576854,0.014415,69431.0,69412.0,0.05187374]
[1770491577250,0.014416,69428.0,69412.0,0.05187374]
[1770491578550,0.14218203,69438.0,69419.0,0.05672491]
[1770491578739,0.15659503,69443.0,69423.0,0.06112877]
[1770491579546,0.014413,69441.0,69423.0,0.06112877]
[1770491580847,0.014412,69447.0,69427.0,0.08471628]
[1770491581345,0.15659403,69447.0,69427.0,0.08471628]
[1770491581751,0.014412,69444.0,69427.0,0.07030028]
[1770491582155,0.014413,69442.0,69427.0,0.07030028]
[1770491582355,0.01441,69457.0,69421.0,0.07388374]
[1770491582356,0.15659503,69440.0,69421.0,0.07388374]
[1770491582654,0.14218203,69440.0,69423.0,0.07363342]
[1770491584361,0.14218203,69440.0,69425.0,0.07713364]
[1770491586660,0.16969352,69439.0,69420.0,0.014417]
[1770491586961,0.15528052,69439.0,69422.0,0.014417]
[1770491587462,0.15528052,69439.0,69422.0,0.09777484]
[1770491588454,0.014412,69444.0,69426.0,0.08508402]
[1770491588655,0.16969252,69444.0,69426.0,0.08508402]
[1770491589161,0.16969552,69432.0,69412.0,0.08572646]
[1770491589362,0.15528052,69426.0,69407.0,0.01442]
[1770491590864,0.15528052,69424.0,69408.0,0.09143584]
[1770491594265,0.15528052,69424.0,69409.0,0.014419]
[1770491594465,0.15528052,69424.0,69409.0,0.10984202]
[1770491597364,0.049,69428.0,69412.0,0.11513137]
[1770491602166,0.049,69428.0,69412.0,0.10071237]
[1770491602366,0.049,69428.0,69413.0,0.12173954]
[1770491602767,0.16302822,69448.0,69425.0,0.1059468]
[1770491602974,0.16302822,69448.0,69437.0,0.014414]
[1770491603161,0.01441,69456.0,69437.0,0.014414]
[1770491603363,0.16302822,69455.0,69437.0,0.014414]
[1770491603769,0.16302822,69455.0,69433.0,0.1216549]
[1770491603975,0.16302822,69455.0,69437.0,0.014414]
[1770491604178,0.16302822,69455.0,69437.0,0.12306649]
[1770491604874,0.16302822,69455.0,69437.0,0.10865249]
[1770491605472,0.16302822,69455.0,69438.0,0.1254581]
[1770491605673,0.16302822,69455.0,69438.0,0.1110451]
[1770491605872,0.17743722,69461.0,69438.0,0.1110451]
[1770491607168,0.16302822,69451.0,69429.0,0.11330496]
[1770491608564,0.57522655,69478.0,69427.0,0.014416]
[1770491608565,0.16302822,69472.0,69437.0,0.11465394]
[1770491608764,0.16302822,69472.0,69427.0,0.072081]
[1770491608765,0.16002822,69472.0,69452.0,0.12232935]
[1770491608973,0.16302822,69485.0,69452.0,0.12232935]
[1770491609171,0.014406,69474.0,69452.0,0.12232935]
[1770491612368,0.57522655,69505.0,69442.0,0.12121721]
[1770491612369,0.014408,69466.0,69442.0,0.12121721]
[1770491612575,0.16302822,69466.0,69442.0,0.12121721]
[1770491612769,0.16302822,69459.0,69442.0,0.12121721]
[1770491612973,0.17743722,69459.0,69442.0,0.12121721]
[1770491613167,0.16302822,69459.0,69442.0,0.12121721]
[1770491613574,0.01441,69455.0,69442.0,0.12121721]
[1770491614277,0.17743722,69459.0,69442.0,0.12121721]
[1770491614876,0.014409,69459.0,69442.0,0.12121721]
[1770491615480,0.014408,69463.0,69442.0,0.12121721]
[1770491617878,0.16302822,69465.0,69445.0,0.12181632]
[1770491618080,0.014408,69467.0,69445.0,0.12181632]
[1770491618981,0.014408,69464.0,69445.0,0.12181632]
[1770491619986,0.014409,69461.0,69445.0,0.12181632]
[1770491620686,0.014409,69459.0,69445.0,0.12181632]